bitfinex-derivatives/quotes_SOLF0:USTF0_20241227
["timestamp","ask_amount","ask_price","bid_price","bid_amount"]
[1735298094709,7.24398033,191.35,191.3,3.24]
[1735298095606,7.24398033,191.35,191.3,11.64564389]
[1735298095814,7.24398033,191.34,191.3,11.64564389]
[1735298096509,7.24398033,191.34,191.31,2.6169]
[1735298096903,7.24398033,191.34,191.3,11.64564389]
[1735298097102,7.24398033,191.34,191.3,5.8571]
[1735298097513,15.64962422,191.34,191.3,3.24]
[1735298097714,28.98481253,191.33,191.3,3.24]
[1735298097914,28.98481253,191.33,191.3,5.8571]
[1735298098820,28.98481253,191.33,191.3,3.24]
[1735298099115,21.7408322,191.31,191.3,3.24]
[1735298099316,21.7408322,191.31,191.28,8.40564389]
[1735298100318,21.7408322,191.31,191.27,3.24]
[1735298100514,21.7408322,191.31,191.26,8.40564389]
[1735298100711,29.01970195,191.31,191.26,11.64564389]
[1735298100907,29.01970195,191.31,191.16,5.238]
[1735298100908,29.01970195,191.31,191.25,3.24]
[1735298101518,29.01970195,191.31,191.26,8.40564389]
[1735298101719,7.27886975,191.3,191.28,8.40564389]
[1735298102914,7.27886975,191.33,191.32,2.6168]
[1735298104619,29.01970195,191.34,191.32,2.6168]
[1735298104822,29.01970195,191.34,191.33,2.6167]
[1735298105421,7.27886975,191.34,191.33,2.6167]
[1735298107419,71.90571085,191.36,191.34,2.6165]
[1735298107420,42.94986025,191.36,191.34,2.6165]
[1735298107622,42.94986025,191.36,191.34,8.40564389]
[1735298108116,42.94986025,191.36,191.35,2.6164]
[1735298108318,42.94986025,191.36,191.35,5.8564]
[1735298108519,7.27886975,191.37,191.35,3.24]
[1735298109726,95.41759819,191.4,191.35,3.24]
[1735298109727,37.42534584,191.4,191.35,5.8563]
[1735298110216,37.42534584,191.4,191.36,2.6162]
[1735298110419,37.42534584,191.4,191.35,3.24]
[1735298110620,7.27886975,191.39,191.34,8.40564389]
[1735298110819,7.27886975,191.39,191.35,3.24]
[1735298111816,15.68451364,191.4,191.36,2.6162]
[1735298112022,15.68451364,191.4,191.35,3.24]
[1735298113024,37.42534584,191.4,191.35,3.24]
[1735298113826,29.01970195,191.4,191.35,3.24]
[1735298114119,7.27886975,191.4,191.35,3.24]
[1735298114922,7.27886975,191.4,191.38,2.616]
[1735298116023,42.95187774,191.41,191.38,2.616]
[1735298116419,42.95187774,191.41,191.35,3.24]
[1735298117125,7.27886975,191.41,191.35,3.24]
[1735298117519,7.27886975,191.41,191.38,2.6159]
[1735298118527,8.40564389,191.4,191.22,5.2363]
[1735298118828,8.40564389,191.33,191.26,8.40564389]
[1735298119125,8.40564389,191.31,191.27,2.6175]
[1735298119325,8.40564389,191.31,191.25,3.24]
[1735298119525,11.02264389,191.31,191.25,3.24]
[1735298120026,12.67174389,191.31,191.25,3.24]
[1735298120219,41.69144584,191.31,191.25,3.24]
[1735298120426,8.40564389,191.29,191.25,3.24]
[1735298120718,8.40564389,191.27,191.2,3.24]
[1735298121927,15.68451364,191.27,191.2,3.24]
[1735298122134,7.27886975,191.27,191.2,3.24]
[1735298122522,7.27886975,191.27,191.21,13.14369231]
[1735298122924,29.01970195,191.27,191.21,13.14369231]
[1735298123124,29.01970195,191.27,191.26,2.6177]
[1735298123922,32.18730195,191.32,191.3,2.6171]
[1735298124722,3.1676,191.32,191.25,3.24]
[1735298124928,3.1676,191.32,191.28,2.6173]
[1735298125123,3.1676,191.32,191.25,3.24]
[1735298125518,5.7845,191.32,191.25,3.24]
[1735298125727,3.1676,191.32,191.25,3.24]
[1735298126029,2.6174,191.29,191.22,3.24]
[1735298126327,7.27886975,191.29,191.18,13.14369231]
[1735298126523,2.6175,191.27,191.21,2.6184]
[1735298126727,7.27886975,191.29,191.21,2.6184]
[1735298127232,7.27886975,191.27,191.21,2.6184]
[1735298128624,7.27886975,191.27,191.2,2.6185]
[1735298129429,20.42256206,191.27,191.15,13.14369231]
[1735298129730,20.42256206,191.27,191.12,13.14369231]
[1735298129731,13.14369231,191.24,191.12,13.14369231]
[1735298129923,4.8253,191.23,191.16,3.24]
[1735298130124,4.8253,191.23,191.12,13.14369231]
[1735298130125,4.8253,191.23,191.14,67.31049282]
[1735298130724,4.8253,191.23,191.18,2.6187]
[1735298131221,4.8253,191.23,191.15,13.14369231]
[1735298131222,33.84500195,191.23,191.15,13.14369231]
[1735298131821,4.8253,191.23,191.15,13.14369231]
[1735298132017,4.8253,191.23,191.21,2.6183]
[1735298133925,4.8253,191.23,191.14,67.31049282]
[1735298134121,4.8253,191.23,191.11,1.84576183]
[1735298134321,2.6186,191.2,191.15,2.6191]
[1735298134529,13.14369231,191.21,191.11,5.08576183]
[1735298135326,13.14369231,191.21,191.16,2.619]
[1735298136326,15.76209231,191.21,191.16,2.619]
[1735298137725,13.14369231,191.21,191.11,1.84576183]
[1735298137928,13.14369231,191.21,191.06,13.14369231]
[1735298138337,2.6189,191.18,191.12,2.6195]
[1735298138634,2.6189,191.18,191.07,3.24]
[1735298139034,2.6189,191.18,191.1,2.6198]
[1735298139228,2.6189,191.18,191.07,3.24]
[1735298139536,42.16339426,191.21,191.07,3.24]
[1735298139732,42.16339426,191.21,191.15,2.619]
[1735298139932,23.04096206,191.21,191.09,13.14369231]
[1735298140135,20.42256206,191.21,191.09,13.14369231]
[1735298140333,20.42256206,191.21,191.14,2.6192]
[1735298140634,20.42256206,191.21,191.09,13.14369231]
[1735298140635,2.6185,191.2,191.09,13.14369231]
[1735298141837,2.6185,191.2,191.14,2.6192]
[1735298142237,13.14369231,191.21,191.14,2.6192]
[1735298142433,13.14369231,191.18,191.12,2.6195]
[1735298143538,2.6189,191.17,191.12,2.6195]
[1735298143740,13.14369231,191.18,191.1,2.6197]
[1735298143930,2.619,191.16,191.1,2.6197]
[1735298144133,3.2392,191.15,191.1,2.6197]
[1735298144334,1.6085,191.14,191.1,2.6197]
[1735298144738,1.6085,191.14,191.08,3.24]
[1735298144938,1.6085,191.14,191.11,2.6197]
[1735298146342,1.6085,191.14,191.1,2.6199]
[1735298146737,1.6085,191.14,191.06,3.24]
[1735298146936,1.6085,191.14,191.05,3.24]
[1735298148540,1.6085,191.14,191.03,13.14369231]
[1735298148744,1.6085,191.14,191.03,3.24]
[1735298148956,13.14369231,191.09,191.04,2.6206]
[1735298149251,13.14369231,191.09,190.91,6.7751]
[1735298149252,13.14369231,191.09,190.98,3.24]
[1735298149443,2.6206,191.05,190.98,2.6215]
[1735298149752,3.14,191.04,190.96,3.24]
[1735298150244,3.14,191.04,190.95,3.24]
[1735298150448,4.7386,191.04,190.95,3.24]
[1735298150949,13.14369231,191.03,190.9,54.44]
[1735298151246,13.14369231,191.03,190.91,3.24]
[1735298151448,2.6212,191.0,190.94,2.6219]
[1735298151645,4.7386,191.04,190.91,3.24]
[1735298151944,17.88229231,191.04,190.92,13.14369231]
[1735298152147,3.14,191.04,190.95,13.14369231]
[1735298152348,7.20199385,191.05,190.98,13.14369231]
[1735298152945,16.30279231,191.1,191.06,2.6204]
[1735298153247,16.30279231,191.1,191.01,3.24]
[1735298154142,3.1591,191.1,191.01,3.24]
[1735298154550,3.1591,191.1,191.04,2.6206]
[1735298155451,12.98099385,191.1,191.04,2.6206]
[1735298155650,12.98099385,191.1,191.03,2.6208]
[1735298155946,23.50478616,191.1,191.0,3.24]
[1735298156141,45.11076771,191.1,191.0,3.24]
[1735298156550,2.6201,191.08,191.01,2.621]
[1735298156742,2.6201,191.08,191.0,3.24]
[1735298158448,2.6203,191.07,190.99,3.24]
[1735298159150,9.82229385,191.07,190.99,3.24]
[1735298159556,7.20199385,191.07,190.99,3.24]
[1735298159948,7.20199385,191.07,191.05,2.6205]
[1735298160149,28.8079754,191.07,191.05,2.6205]
[1735298160357,28.8079754,191.07,190.99,3.24]
[1735298160949,21.60598155,191.07,190.99,3.24]
[1735298161258,7.20199385,191.09,190.99,3.24]
[1735298162053,28.8079754,191.08,190.99,3.24]
[1735298162455,28.8079754,191.08,191.02,2.621]
[1735298162862,7.20199385,191.07,191.02,2.621]
[1735298163558,7.20199385,191.07,191.04,2.6206]
[1735298163756,7.20199385,191.07,190.99,3.24]
[1735298163953,7.20199385,191.07,191.01,13.14369231]
[1735298164960,7.20199385,191.07,190.99,3.24]
[1735298165964,28.8079754,191.05,190.99,3.24]
[1735298166361,28.8079754,191.05,191.02,2.621]
[1735298166664,28.8079754,191.05,190.99,3.24]
[1735298167066,28.8079754,191.04,190.99,3.24]
[1735298167661,28.8079754,191.04,191.01,2.621]
[1735298167867,7.20199385,191.03,190.99,3.24]
[1735298168267,7.20199385,191.03,191.0,2.6212]
[1735298168560,7.20199385,191.03,190.99,3.24]
[1735298169965,7.20199385,191.03,191.01,2.621]
[1735298170666,7.20199385,191.03,191.02,2.621]
[1735298170865,28.8079754,191.03,191.02,2.621]
[1735298171564,28.8079754,191.03,191.01,2.6211]
[1735298171764,7.20199385,191.04,191.01,2.6211]
[1735298172667,7.20199385,191.02,190.98,2.6214]
[1735298172968,7.20199385,191.02,190.98,3.24]
[1735298173171,7.20199385,191.02,191.0,2.6212]
[1735298173560,28.8079754,191.01,191.0,2.6212]
[1735298173964,21.60598155,191.01,191.0,2.6212]
[1735298174166,21.60598155,191.01,190.97,2.6215]
[1735298174369,21.60598155,191.01,190.96,3.24]
[1735298174766,21.60598155,191.01,190.98,2.6215]
[1735298174966,7.27251966,190.99,190.92,3.24]
[1735298175164,7.27251966,190.99,190.9,3.24]
[1735298175365,9.89401966,190.99,190.92,2.6223]
[1735298175766,13.14369231,190.98,190.86,13.14369231]
[1735298175973,2.6219,190.95,190.87,3.24]
[1735298176274,3.2247,190.94,190.87,3.24]
[1735298176567,3.2247,190.94,190.88,2.6228]
[1735298177162,3.2247,190.94,190.87,3.24]
[1735298177566,7.27251966,190.93,190.87,3.24]
[1735298177875,7.27251966,190.93,190.92,2.6223]
[1735298178071,28.87850121,190.94,190.87,16.38369231]
[1735298178377,28.87850121,190.94,190.89,2.6227]
[1735298178572,28.87850121,190.94,190.87,16.38369231]
[1735298179069,28.87850121,190.95,190.92,2.6222]
[1735298179269,28.87850121,190.95,190.87,16.38369231]
[1735298179473,28.87850121,190.95,190.94,2.6221]
[1735298179673,28.87850121,190.95,190.94,5.8621]
[1735298179876,7.27251966,190.95,190.94,5.8621]
[1735298180073,4.74541966,190.95,190.94,5.8621]
[1735298181075,35.55619614,191.03,190.94,3.24]
[1735298181672,35.55619614,191.03,190.95,2.6218]
[1735298182076,35.55619614,191.03,190.94,3.24]
[1735298182379,26.46368155,191.04,190.99,2.6213]
[1735298182675,24.81188155,191.04,190.99,3.24]
[1735298183577,24.81188155,191.04,191.02,2.6209]
[1735298184074,21.60598155,191.04,191.03,2.6208]
[1735298184273,21.60598155,191.05,191.03,2.6208]
[1735298184971,21.60598155,191.05,191.04,2.6207]
[1735298185177,21.60598155,191.05,191.04,5.8607]
[1735298185667,21.60598155,191.08,191.05,2.6205]
[1735298186575,24.84828155,191.1,191.05,2.6205]
[1735298187478,3.2423,191.1,191.05,2.6205]
[1735298188370,3.2423,191.1,190.99,13.14369231]
[1735298188574,16.38599231,191.1,191.0,3.24]
[1735298188774,16.38599231,191.1,191.01,3.24]
[1735298189175,16.38599231,191.1,191.03,2.6207]
[1735298189579,21.60598155,191.08,191.03,2.6207]
[1735298190379,40.61187386,191.1,191.03,2.6207]
[1735298191281,37.99197386,191.1,191.04,2.6206]
[1735298191576,37.99197386,191.1,191.01,3.24]
[1735298191875,37.99197386,191.1,191.04,2.6207]
[1735298192081,37.99197386,191.1,191.01,3.24]
[1735298192686,40.61197386,191.1,191.04,2.6207]
[1735298193078,35.24343498,191.09,191.04,2.6207]
[1735298193381,35.24343498,191.09,191.05,2.6205]
[1735298193579,35.24343498,191.09,191.01,3.24]
[1735298193975,13.63745343,191.09,191.01,3.24]
[1735298194175,13.63745343,191.09,191.05,2.6205]
[1735298194572,13.63745343,191.09,191.01,3.24]
[1735298194774,13.63745343,191.09,191.04,2.6207]
[1735298194985,24.84828155,191.1,191.04,2.6207]
[1735298194986,3.2423,191.1,191.04,2.6207]
[1735298195985,3.2423,191.1,191.01,3.24]
[1735298196186,16.38599231,191.1,191.01,3.24]
[1735298196489,13.14369231,191.07,190.93,13.14369231]
[1735298196685,2.6208,191.04,190.96,2.6216]
[1735298196880,2.6208,191.04,190.94,3.24]
[1735298196881,3.2488,191.03,190.94,3.24]
[1735298197281,2.6211,191.01,190.94,3.24]
[1735298197483,3.2488,191.03,190.94,3.24]
[1735298197884,3.2488,191.03,190.9,13.14369231]
[1735298198083,2.621,191.02,190.95,2.6218]
[1735298198683,3.2488,191.03,190.95,2.6218]
[1735298198884,2.6213,191.0,190.93,2.6221]
[1735298199787,2.6213,191.0,190.91,3.24]
[1735298199982,1.6093,190.99,190.91,3.24]
[1735298200490,1.6093,190.99,190.93,2.6221]
[1735298200682,1.6093,190.99,190.91,3.24]
[1735298201083,1.6093,190.99,190.92,2.6222]
[1735298201582,1.6093,190.99,190.91,2.6225]
[1735298202283,23.21528155,190.99,190.91,2.6225]
[1735298202882,23.21528155,190.99,190.9,3.22]
[1735298203585,35.23999499,190.98,190.9,3.22]
[1735298204186,59.22525082,190.99,190.9,3.22]
[1735298204187,1.6093,190.99,190.9,3.22]
[1735298204489,1.6093,190.99,190.93,2.6222]
[1735298204490,4.2307,190.99,190.93,2.6222]
[1735298204691,1.6093,190.99,190.9,3.22]
[1735298205987,2.6215,190.98,190.92,2.6223]
[1735298206197,1.6093,190.99,190.87,13.14369231]
[1735298206491,13.14369231,190.98,190.88,3.22]
[1735298206688,13.14369231,190.98,190.87,13.14369231]
[1735298206992,13.14369231,190.98,190.88,3.22]
[1735298207389,2.6219,190.96,190.88,3.22]
[1735298207595,3.2273,190.95,190.9,2.6226]
[1735298208093,3.2273,190.95,190.88,3.22]
[1735298208497,3.2273,190.95,190.93,2.6221]
[1735298208690,3.2273,190.95,190.88,3.22]
[1735298209194,3.2273,190.95,190.93,2.6222]
[1735298209398,3.2273,190.95,190.88,3.22]
[1735298209791,3.2273,190.95,190.9,2.6226]
[1735298210395,3.2273,190.95,190.91,2.6225]
[1735298210590,3.2273,190.95,190.88,3.22]
[1735298210999,21.60598155,190.98,190.9,13.14369231]
[1735298211391,1.6093,190.99,190.9,13.14369231]
[1735298211995,1.6093,190.99,190.95,2.6219]
[1735298212495,3.1577,191.0,190.97,2.6217]
[1735298212697,3.1577,191.0,190.94,3.22]
[1735298212893,21.60598155,191.04,190.94,3.22]
[1735298213094,21.60598155,191.04,191.02,2.621]
[1735298213598,21.60598155,191.04,191.01,2.6211]
[1735298213987,1.6296,191.05,190.99,3.22]
[1735298215497,1.6296,191.05,191.02,2.621]
[1735298216203,1.6296,191.05,191.0,2.6211]
[1735298216703,1.6296,191.05,191.01,2.6211]
[1735298219302,1.6296,191.05,190.99,2.6214]
[1735298219491,1.6296,191.05,190.99,5.8414]
[1735298220304,1.6296,191.05,190.99,2.6214]
[1735298220601,1.6296,191.05,191.0,2.6212]
[1735298224200,1.6296,191.05,190.99,2.6214]
[1735298224503,1.6296,191.05,190.97,3.22]
[1735298225104,1.6296,191.05,191.0,2.6211]
[1735298226606,25.85628155,191.05,191.0,2.6211]
[1735298226905,13.14369231,191.03,190.9,13.14369231]
[1735298227104,2.6214,191.0,190.91,3.22]
[1735298227404,13.14369231,191.03,190.96,2.6218]
[1735298227704,34.74967386,191.03,190.96,2.6218]
[1735298227905,34.74967386,191.03,190.91,3.22]
[1735298228203,13.14369231,191.0,190.88,63.2830335]
[1735298228407,21.60598155,191.03,190.9,2.6225]
[1735298228408,2.6219,190.96,190.9,2.6225]
[1735298228598,13.14369231,190.97,190.9,2.6225]
[1735298229001,13.14369231,190.97,190.84,13.14369231]
[1735298229303,2.6221,190.95,190.85,3.22]
[1735298229504,13.14369231,190.97,190.85,3.22]
[1735298229704,2.622,190.95,190.89,2.6228]
[1735298230201,21.60598155,190.96,190.86,3.22]
[1735298230400,21.60598155,190.96,190.92,2.6224]
[1735298230906,13.64800721,190.96,190.92,2.6224]
[1735298231702,35.25398876,190.96,190.92,2.6224]
[1735298232605,35.25398876,190.96,190.88,3.22]
[1735298233405,2.622,190.95,190.9,2.6226]
[1735298234111,35.25398876,190.96,190.88,3.22]
[1735298234405,21.60598155,190.95,190.92,2.6223]
[1735298236209,35.24955985,190.96,190.92,2.6223]
[1735298238108,35.24955985,190.96,190.88,3.22]
[1735298238318,2.6222,190.94,190.88,3.22]
[1735298239204,2.6222,190.94,190.84,13.14369231]
[1735298239408,2.6222,190.94,190.85,3.22]
[1735298240210,2.6222,190.94,190.89,2.6227]
[1735298240816,9.8861956,190.94,190.89,2.6227]
[1735298241811,7.2639956,190.94,190.9,2.6225]
[1735298243113,28.86997715,190.95,190.9,2.6225]
[1735298243317,2.6221,190.94,190.9,2.6225]
[1735298244211,8.44367585,190.91,190.86,2.6231]
[1735298244405,8.44367585,190.91,190.85,3.22]
[1735298245006,8.44367585,190.91,190.86,2.6231]
[1735298245207,8.44367585,190.91,190.85,3.22]
[1735298246415,8.44367585,190.91,190.87,2.6229]
[1735298246620,8.44367585,190.89,190.82,8.44367585]
[1735298247210,8.44367585,190.85,190.72,1.6358]
[1735298247418,8.44367585,190.85,190.78,8.44367585]
[1735298247619,8.44367585,190.85,190.8,2.6239]
[1735298248719,8.44367585,190.85,190.81,2.6239]
[1735298248910,8.44367585,190.85,190.78,8.44367585]
[1735298249121,8.44367585,190.87,190.8,8.44367585]
[1735298249309,1.6811,190.88,190.82,8.44367585]
[1735298249713,1.6811,190.88,190.82,11.66367585]
[1735298249913,8.44367585,190.87,190.82,3.22]
[1735298250114,1.6811,190.88,190.82,3.22]
[1735298250115,4.3041,190.88,190.82,3.22]
[1735298250322,4.3041,190.88,190.77,13.19933667]
[1735298250620,1.6811,190.88,190.83,2.6236]
[1735298250918,1.6811,190.88,190.8,3.22]
[1735298251214,4.3041,190.88,190.82,2.6236]
[1735298252312,4.3041,190.88,190.83,2.6236]
[1735298253120,4.3041,190.88,190.8,3.22]
[1735298253321,4.3041,190.88,190.84,2.6234]
[1735298257222,2.6233,190.86,190.82,2.6237]
[1735298257723,13.19933667,190.87,190.78,3.22]
[1735298258728,13.19933667,190.87,190.8,2.6238]
[1735298259221,13.19933667,190.87,190.78,3.22]
[1735298259427,13.19933667,190.87,190.77,3.22]
[1735298259925,13.19933667,190.87,190.78,3.22]
[1735298260326,13.19933667,190.87,190.74,13.19933667]
[1735298260526,13.19933667,190.87,190.75,3.22]
[1735298261219,20.46333227,190.87,190.75,3.22]
[1735298262023,2.6235,190.82,190.75,5.8444]
[1735298262527,2.6235,190.82,190.76,2.6243]
[1735298263028,7.2639956,190.86,190.77,2.6241]
[1735298263226,7.2639956,190.85,190.76,13.19933667]
[1735298263623,7.2639956,190.85,190.78,2.6239]
[1735298263826,7.2639956,190.85,190.76,13.19933667]
[1735298264230,7.2639956,190.85,190.8,2.6237]
[1735298264429,7.2639956,190.85,190.8,5.8437]
[1735298265121,7.2639956,190.85,190.8,3.22]
[1735298265324,42.53852639,190.86,190.8,3.22]
[1735298266126,2.6234,190.83,190.8,3.22]
[1735298266333,42.53852639,190.86,190.8,3.22]
[1735298266834,2.6235,190.83,190.8,3.22]
[1735298267027,2.6235,190.83,190.77,2.6241]
[1735298267229,2.6235,190.83,190.78,2.624]
[1735298267429,2.6236,190.82,190.73,13.19933667]
[1735298267634,2.6236,190.82,190.76,3.22]
[1735298267929,2.6236,190.82,190.76,5.8442]
[1735298268137,42.06931382,190.85,190.73,13.19933667]
[1735298268338,1.5802,190.84,190.74,3.22]
[1735298268631,2.624,190.79,190.74,3.22]
[1735298269035,2.624,190.79,190.73,5.8446]
[1735298270130,8.45402197,190.8,190.73,5.8446]
[1735298270430,11.07812197,190.78,190.72,3.22]
[1735298271031,8.45402197,190.78,190.72,11.67402197]
[1735298271829,8.45402197,190.78,190.73,2.6247]
[1735298273025,8.45402197,190.78,190.72,8.45402197]
[1735298273231,15.71801757,190.8,190.72,8.45402197]
[1735298273834,18.34181757,190.8,190.74,2.6246]
[1735298274035,15.71801757,190.8,190.71,3.22]
[1735298274231,8.45402197,190.78,190.71,11.67402197]
[1735298274436,11.07822197,190.78,190.72,2.6247]
[1735298274938,11.07822197,190.78,190.71,11.67402197]
[1735298275132,8.45402197,190.78,190.73,2.6247]
[1735298276336,8.45402197,190.78,190.72,3.22]
[1735298276637,2.6244,190.76,190.71,3.22]
[1735298276939,2.6244,190.76,190.7,11.67402197]
[1735298277342,2.6244,190.76,190.7,14.29902197]
[1735298277935,8.45402197,190.76,190.7,3.22]
[1735298278138,2.6245,190.75,190.7,3.22]
[1735298279541,2.6245,190.75,190.7,5.8451]
[1735298279737,8.45402197,190.76,190.7,3.22]
[1735298279941,37.32399912,190.78,190.7,11.67402197]
[1735298280141,28.86997715,190.78,190.72,8.45402197]
[1735298280343,28.86997715,190.78,190.74,8.45402197]
[1735298280644,28.86997715,190.78,190.77,2.6242]
[1735298281641,7.2639956,190.82,190.81,2.6236]
[1735298282531,1.5802,190.84,190.81,2.6236]
[1735298282932,28.86997715,190.85,190.8,11.67402197]
[1735298283132,28.86997715,190.85,190.82,8.45402197]
[1735298283337,28.86997715,190.85,190.82,11.67402197]
[1735298283541,7.2639956,190.85,190.84,2.6232]
[1735298284135,8.45402197,190.89,190.82,11.67402197]
[1735298284136,28.86997715,190.9,190.82,3.22]
[1735298284942,59.13965082,190.91,190.86,2.6228]
[1735298284943,1.5237,190.91,190.86,2.6228]
[1735298285536,1.5237,190.91,190.82,5.8434]
[1735298285737,13.19392714,190.9,190.82,3.22]
[1735298285933,13.19392714,190.9,190.8,3.22]
[1735298286139,15.81682714,190.87,190.8,3.22]
[1735298286648,15.81682714,190.87,190.8,5.8438]
[1735298286950,15.81682714,190.87,190.73,63.02787642]
[1735298286951,20.45792274,190.87,190.73,63.02787642]
[1735298287136,20.45792274,190.87,190.75,13.19392714]
[1735298287837,7.2639956,190.85,190.78,13.19392714]
[1735298288044,7.2639956,190.85,190.84,2.6232]
[1735298288246,7.2639956,190.85,190.84,5.8432]
[1735298289049,7.2639956,190.9,190.86,2.6229]
[1735298289843,1.5237,190.91,190.86,2.6229]
[1735298290443,2.6225,190.89,190.84,3.22]
[1735298290644,13.19392714,190.9,190.84,3.22]
[1735298291249,13.19392714,190.9,190.85,2.6231]
[1735298292251,15.81632714,190.9,190.85,2.6231]
[1735298293050,13.19392714,190.9,190.86,2.6229]
[1735298293652,20.45792274,190.9,190.86,2.6229]
[1735298294160,7.2639956,190.9,190.83,3.22]
[1735298294751,7.2639956,190.9,190.88,2.6227]
[1735298295754,1.5237,190.91,190.88,2.6227]
[1735298295948,1.5237,190.91,190.86,2.6228]
[1735298296653,1.5237,190.91,190.87,2.6228]
[1735298296855,4.1461,190.91,190.83,3.22]
[1735298297354,11.4100956,190.91,190.83,3.22]
[1735298297545,11.4100956,190.91,190.86,2.6229]
[1735298297747,11.4100956,190.91,190.83,3.22]
[1735298297951,11.4100956,190.91,190.85,2.623]
[1735298298154,33.01607715,190.91,190.83,3.22]
[1735298298361,2.6224,190.9,190.83,3.22]
[1735298298658,30.39367715,190.91,190.85,2.6231]
[1735298298856,23.12968155,190.91,190.85,2.6231]
[1735298299066,13.19392714,190.9,190.83,3.22]
[1735298299356,13.19392714,190.9,190.83,5.8433]
[1735298300356,7.2639956,190.89,190.78,13.19392714]
[1735298300559,2.623,190.86,190.79,3.22]
[1735298300861,7.2639956,190.89,190.8,3.22]
[1735298301362,2.6228,190.87,190.82,2.6234]
[1735298301663,7.2639956,190.89,190.8,3.22]
[1735298301664,28.86997715,190.88,190.8,3.22]
[1735298302262,7.2639956,190.89,190.8,3.22]
[1735298302457,2.6227,190.88,190.83,2.6233]
[1735298302871,2.6227,190.88,190.8,3.22]
[1735298303161,2.6227,190.88,190.82,2.6235]
[1735298304358,31.49257715,190.89,190.83,2.6233]
[1735298304860,28.86997715,190.89,190.8,3.22]
[1735298305065,2.6228,190.88,190.8,3.22]
[1735298306261,8.44658035,190.88,190.83,2.6233]
[1735298306669,0.71011965,190.8,190.74,1.6478]
[1735298306966,0.71011965,190.8,190.79,8.44658035]
[1735298307465,0.71011965,190.8,190.79,11.07048035]
[1735298308562,7.2639956,190.89,190.79,8.44658035]
[1735298308764,7.2639956,190.89,190.85,8.44658035]
[1735298308971,28.86997715,190.9,190.87,8.44658035]
[1735298309172,28.86997715,190.9,190.89,2.6225]
[1735298310068,7.2639956,190.93,190.89,2.6225]
[1735298311370,23.17578155,190.94,190.89,2.6225]
[1735298311371,1.5698,190.94,190.89,2.6225]
[1735298311965,28.86997715,190.95,190.88,3.22]
[1735298312971,28.86997715,190.95,190.91,2.6221]
[1735298313567,28.86997715,190.97,190.88,3.22]
[1735298313771,2.6216,190.96,190.9,2.6224]
[1735298314373,7.2639956,190.95,190.9,2.6224]
[1735298315371,42.53623605,190.95,190.9,2.6224]
[1735298315775,42.53623605,190.95,190.88,3.22]
[1735298316170,42.53623605,190.95,190.93,2.6219]
[1735298316566,42.53623605,190.95,190.93,3.22]
[1735298316775,42.53623605,190.95,190.94,2.6218]
[1735298317477,7.2639956,190.98,190.97,2.6214]
[1735298318677,8.9233956,190.99,190.97,2.6214]
[1735298319979,1.6594,190.99,190.97,2.6214]
[1735298324079,9.8845956,191.03,190.97,2.6214]
[1735298324281,7.2639956,191.03,190.98,3.22]
[1735298325088,7.2639956,191.03,191.02,2.6207]
[1735298325284,72.85289534,191.05,190.98,3.22]
[1735298325285,7.2639956,191.05,190.98,3.22]
[1735298326488,31.48987715,191.08,190.98,3.22]
[1735298327189,31.49027715,191.08,191.01,2.6211]
[1735298327390,2.6203,191.08,191.01,2.6211]
[1735298327689,28.86997715,191.09,191.01,2.6211]
[1735298328385,7.2639956,191.09,191.01,2.6211]
[1735298328584,2.6204,191.07,191.01,2.6211]
[1735298328989,13.18951041,191.07,190.91,1.6752]
[1735298329191,13.18951041,191.07,190.94,13.18951041]
[1735298329389,13.18951041,191.04,190.95,3.22]
[1735298329583,1.663,191.03,190.93,3.22]
[1735298329791,2.6213,191.0,190.93,5.8422]
[1735298330091,1.5253,190.99,190.93,5.8422]
[1735298330288,9.96151112,190.99,190.93,5.8422]
[1735298330487,1.5253,190.99,190.95,2.622]